Workbook

Sheet 综合成绩及进入体检人员名单
A1: 2020年溧阳市教育系统公开招聘中小学教师综合成绩及进入体检人员名单
A2: 序号 | B2: 单位名称 | C2: 岗位名称 | D2: 招聘人数 | E2: 准考证号 | F2: 性别 | G2: 笔试 成绩 | H2: 笔试成绩折合40% | I2: 音体美学科 技能考核及课堂教学能力测试分值 | K2: 其他学科课堂教学能力测试分值 | L2: 音体美技能、课堂教学能力测试各折合30%；其他学科课堂教学能力测试折合60% | M2: 综合 成绩 | N2: 是否 进入体检
A3: 1 | B3: 溧阳市教职工流动服务中心 | C3: 小学语文（低年级） | D3: 4 | E3: 220020200022 | F3: 女 | G3: 61.50 | H3: =ROUND(G3*0.4,2) -> 24.60 | K3: 83.67 | L3: =ROUND(I3*0.3+J3*0.3+K3*0.6,2) -> 50.20 | M3: =ROUND((H3+L3),2) -> 74.80 | N3: 进入体检
A4: 2 | B4: 溧阳市教职工流动服务中心 | C4: 小学语文（低年级） | D4: 4 | E4: 220020200025 | F4: 女 | G4: 65.50 | H4: 26.20 | K4: 77.67 | L4: =ROUND(I4*0.3+J4*0.3+K4*0.6,2) -> 46.60 | M4: =ROUND((H4+L4),2) -> 72.80 | N4: 进入体检
A5: 3 | B5: 溧阳市教职工流动服务中心 | C5: 小学语文（低年级） | D5: 4 | E5: 220020200010 | F5: 女 | G5: 58.50 | H5: 23.40 | K5: 81.67 | L5: 49.00 | M5: 72.40 | N5: 进入体检
A6: 4 | B6: 溧阳市教职工流动服务中心 | C6: 小学语文（低年级） | D6: 4 | E6: 220020200004 | F6: 女 | G6: 56.00 | H6: 22.40 | K6: 82.67 | L6: 49.60 | M6: 72.00 | N6: 进入体检
A7: 5 | B7: 溧阳市教职工流动服务中心 | C7: 小学语文（低年级） | D7: 4 | E7: 220020200001 | F7: 女 | G7: 57.50 | H7: 23.00 | K7: 81.00 | L7: 48.60 | M7: 71.60
A8: 6 | B8: 溧阳市教职工流动服务中心 | C8: 小学语文（低年级） | D8: 4 | E8: 220020200015 | F8: 女 | G8: 56.00 | H8: 22.40 | K8: 81.67 | L8: 49.00 | M8: 71.40
A9: 7 | B9: 溧阳市教职工流动服务中心 | C9: 小学语文（低年级） | D9: 4 | E9: 220020200023 | F9: 女 | G9: 57.50 | H9: 23.00 | K9: 80.00 | L9: 48.00 | M9: 71.00
A10: 8 | B10: 溧阳市教职工流动服务中心 | C10: 小学语文（低年级） | D10: 4 | E10: 220020200013 | F10: 女 | G10: 58.00 | H10: 23.20 | K10: 79.67 | L10: 47.80 | M10: 71.00
A11: 9 | B11: 溧阳市教职工流动服务中心 | C11: 小学语文（低年级） | D11: 4 | E11: 220020200019 | F11: 女 | G11: 57.00 | H11: 22.80 | K11: 80.00 | L11: 48.00 | M11: 70.80
A12: 10 | B12: 溧阳市教职工流动服务中心 | C12: 小学语文（低年级） | D12: 4 | E12: 220020200003 | F12: 女 | G12: 54.50 | H12: 21.80 | K12: 76.33 | L12: 45.80 | M12: 67.60
A13: 11 | B13: 溧阳市教职工流动服务中心 | C13: 小学语文（低年级） | D13: 4 | E13: 220020200006 | F13: 女 | G13: 54.00 | H13: 21.60 | K13: 75.67 | L13: 45.40 | M13: 67.00
A14: 12 | B14: 溧阳市教职工流动服务中心 | C14: 小学语文（低年级） | D14: 4 | E14: 220020200021 | F14: 女 | G14: 55.00 | H14: 22.00 | K14: 70.33 | L14: 42.20 | M14: 64.20
A15: 13 | B15: 溧阳市教职工流动服务中心 | C15: 小学语文（中年级） | D15: 4 | E15: 220020200041 | F15: 女 | G15: 66.50 | H15: 26.60 | K15: 85.00 | L15: 51.00 | M15: 77.60 | N15: 进入体检
A16: 14 | B16: 溧阳市教职工流动服务中心 | C16: 小学语文（中年级） | D16: 4 | E16: 220020200056 | F16: 女 | G16: 60.50 | H16: 24.20 | K16: 86.33 | L16: 51.80 | M16: 76.00 | N16: 进入体检
A17: 15 | B17: 溧阳市教职工流动服务中心 | C17: 小学语文（中年级） | D17: 4 | E17: 220020200043 | F17: 女 | G17: 58.50 | H17: 23.40 | K17: 85.33 | L17: 51.20 | M17: 74.60 | N17: 进入体检
A18: 16 | B18: 溧阳市教职工流动服务中心 | C18: 小学语文（中年级） | D18: 4 | E18: 220020200045 | F18: 女 | G18: 59.50 | H18: 23.80 | K18: 84.67 | L18: 50.80 | M18: 74.60 | N18: 进入体检
A19: 17 | B19: 溧阳市教职工流动服务中心 | C19: 小学语文（中年级） | D19: 4 | E19: 220020200060 | F19: 女 | G19: 61.50 | H19: 24.60 | K19: 83.33 | L19: 50.00 | M19: 74.60
A20: 18 | B20: 溧阳市教职工流动服务中心 | C20: 小学语文（中年级） | D20: 4 | E20: 220020200038 | F20: 女 | G20: 57.00 | H20: 22.80 | K20: 85.33 | L20: 51.20 | M20: 74.00
A21: 19 | B21: 溧阳市教职工流动服务中心 | C21: 小学语文（中年级） | D21: 4 | E21: 220020200044 | F21: 女 | G21: 57.50 | H21: 23.00 | K21: 85.00 | L21: 51.00 | M21: 74.00
A22: 20 | B22: 溧阳市教职工流动服务中心 | C22: 小学语文（中年级） | D22: 4 | E22: 220020200029 | F22: 女 | G22: 56.00 | H22: 22.40 | K22: 84.00 | L22: 50.40 | M22: 72.80
A23: 21 | B23: 溧阳市教职工流动服务中心 | C23: 小学语文（中年级） | D23: 4 | E23: 220020200047 | F23: 女 | G23: 60.00 | H23: 24.00 | K23: 80.67 | L23: 48.40 | M23: 72.40
A24: 22 | B24: 溧阳市教职工流动服务中心 | C24: 小学语文（中年级） | D24: 4 | E24: 220020200033 | F24: 女 | G24: 55.50 | H24: 22.20 | K24: 81.33 | L24: 48.80 | M24: 71.00
A25: 23 | B25: 溧阳市教职工流动服务中心 | C25: 小学语文（中年级） | D25: 4 | E25: 220020200030 | F25: 女 | G25: 55.50 | H25: 22.20 | K25: 79.67 | L25: 47.80 | M25: 70.00
A26: 24 | B26: 溧阳市教职工流动服务中心 | C26: 小学语文（中年级） | D26: 4 | E26: 220020200042 | F26: 女 | G26: 55.50 | H26: 22.20 | K26: 79.67 | L26: 47.80 | M26: 70.00
A27: 25 | B27: 溧阳市教职工流动服务中心 | C27: 小学语文（中年级） | D27: 4 | E27: 220020200036 | F27: 女 | G27: 56.00 | H27: 22.40 | K27: 0.00 | L27: 0.00 | M27: 22.40
A28: 26 | B28: 溧阳市教职工流动服务中心 | C28: 小学语文（高年级） | D28: 4 | E28: 220020200078 | F28: 女 | G28: 65.00 | H28: 26.00 | K28: 86.00 | L28: 51.60 | M28: 77.60 | N28: 进入体检
A29: 27 | B29: 溧阳市教职工流动服务中心 | C29: 小学语文（高年级） | D29: 4 | E29: 220020200064 | F29: 男 | G29: 62.00 | H29: 24.80 | K29: 86.00 | L29: 51.60 | M29: 76.40 | N29: 进入体检
A30: 28 | B30: 溧阳市教职工流动服务中心 | C30: 小学语文（高年级） | D30: 4 | E30: 220020200076 | F30: 女 | G30: 61.00 | H30: 24.40 | K30: 84.67 | L30: 50.80 | M30: 75.20 | N30: 进入体检
A31: 29 | B31: 溧阳市教职工流动服务中心 | C31: 小学语文（高年级） | D31: 4 | E31: 220020200073 | F31: 女 | G31: 60.50 | H31: 24.20 | K31: 84.33 | L31: 50.60 | M31: 74.80 | N31: 进入体检
A32: 30 | B32: 溧阳市教职工流动服务中心 | C32: 小学语文（高年级） | D32: 4 | E32: 220020200063 | F32: 女 | G32: 57.50 | H32: 23.00 | K32: 85.33 | L32: 51.20 | M32: 74.20
A33: 31 | B33: 溧阳市教职工流动服务中心 | C33: 小学语文（高年级） | D33: 4 | E33: 220020200077 | F33: 女 | G33: 59.00 | H33: 23.60 | K33: 83.00 | L33: 49.80 | M33: 73.40
A34: 32 | B34: 溧阳市教职工流动服务中心 | C34: 小学语文（高年级） | D34: 4 | E34: 220020200069 | F34: 女 | G34: 59.00 | H34: 23.60 | K34: 82.67 | L34: 49.60 | M34: 73.20
A35: 33 | B35: 溧阳市教职工流动服务中心 | C35: 小学语文（高年级） | D35: 4 | E35: 220020200079 | F35: 女 | G35: 57.50 | H35: 23.00 | K35: 82.33 | L35: 49.40 | M35: 72.40
A36: 34 | B36: 溧阳市教职工流动服务中心 | C36: 小学语文（高年级） | D36: 4 | E36: 220020200068 | F36: 女 | G36: 58.50 | H36: 23.40 | K36: 79.00 | L36: 47.40 | M36: 70.80
A37: 35 | B37: 溧阳市教职工流动服务中心 | C37: 小学语文（高年级） | D37: 4 | E37: 220020200071 | F37: 女 | G37: 64.50 | H37: 25.80 | K37: 0.00 | L37: 0.00 | M37: 25.80
A38: 36 | B38: 溧阳市教职工流动服务中心 | C38: 小学语文（高年级） | D38: 4 | E38: 220020200066 | F38: 女 | G38: 56.00 | H38: 22.40 | K38: 0.00 | L38: 0.00 | M38: 22.40
A39: 37 | B39: 溧阳市教职工流动服务中心 | C39: 小学语文（高年级） | D39: 4 | E39: 220020200062 | F39: 女 | G39: 54.50 | H39: 21.80 | K39: 0.00 | L39: 0.00 | M39: 21.80
A40: 38 | B40: 溧阳市教职工流动服务中心 | C40: 小学语文（低中年级） | D40: 4 | E40: 220020200100 | F40: 女 | G40: 65.00 | H40: 26.00 | K40: 84.00 | L40: 50.40 | M40: 76.40 | N40: 进入体检
A41: 39 | B41: 溧阳市教职工流动服务中心 | C41: 小学语文（低中年级） | D41: 4 | E41: 220020200095 | F41: 女 | G41: 65.00 | H41: 26.00 | K41: 82.67 | L41: 49.60 | M41: 75.60 | N41: 进入体检
A42: 40 | B42: 溧阳市教职工流动服务中心 | C42: 小学语文（低中年级） | D42: 4 | E42: 220020200096 | F42: 女 | G42: 63.00 | H42: 25.20 | K42: 79.00 | L42: 47.40 | M42: 72.60 | N42: 进入体检
A43: 41 | B43: 溧阳市教职工流动服务中心 | C43: 小学语文（低中年级） | D43: 4 | E43: 220020200091 | F43: 女 | G43: 57.50 | H43: 23.00 | K43: 82.00 | L43: 49.20 | M43: 72.20 | N43: 进入体检
A44: 42 | B44: 溧阳市教职工流动服务中心 | C44: 小学语文（低中年级） | D44: 4 | E44: 220020200081 | F44: 女 | G44: 66.00 | H44: 26.40 | K44: 75.67 | L44: 45.40 | M44: 71.80
A45: 43 | B45: 溧阳市教职工流动服务中心 | C45: 小学语文（低中年级） | D45: 4 | E45: 220020200083 | F45: 女 | G45: 58.50 | H45: 23.40 | K45: 80.00 | L45: 48.00 | M45: 71.40
A46: 44 | B46: 溧阳市教职工流动服务中心 | C46: 小学语文（低中年级） | D46: 4 | E46: 220020200084 | F46: 女 | G46: 64.00 | H46: 25.60 | K46: 76.00 | L46: 45.60 | M46: 71.20
A47: 45 | B47: 溧阳市教职工流动服务中心 | C47: 小学语文（低中年级） | D47: 4 | E47: 220020200104 | F47: 女 | G47: 62.00 | H47: 24.80 | K47: 74.00 | L47: 44.40 | M47: 69.20
A48: 46 | B48: 溧阳市教职工流动服务中心 | C48: 小学语文（低中年级） | D48: 4 | E48: 220020200093 | F48: 女 | G48: 57.00 | H48: 22.80 | K48: 76.33 | L48: 45.80 | M48: 68.60
A49: 47 | B49: 溧阳市教职工流动服务中心 | C49: 小学语文（低中年级） | D49: 4 | E49: 220020200089 | F49: 女 | G49: 57.50 | H49: 23.00 | K49: 74.33 | L49: 44.60 | M49: 67.60
A50: 48 | B50: 溧阳市教职工流动服务中心 | C50: 小学语文（低中年级） | D50: 4 | E50: 220020200087 | F50: 女 | G50: 56.50 | H50: 22.60 | K50: 74.00 | L50: 44.40 | M50: 67.00
A51: 49 | B51: 溧阳市教职工流动服务中心 | C51: 小学语文（低中年级） | D51: 4 | E51: 220020200088 | F51: 女 | G51: 56.50 | H51: 22.60 | K51: 73.67 | L51: 44.20 | M51: 66.80
A52: 50 | B52: 溧阳市教职工流动服务中心 | C52: 小学语文（中高年级） | D52: 4 | E52: 220020200110 | F52: 女 | G52: 61.50 | H52: 24.60 | K52: 82.00 | L52: 49.20 | M52: 73.80 | N52: 进入体检
A53: 51 | B53: 溧阳市教职工流动服务中心 | C53: 小学语文（中高年级） | D53: 4 | E53: 220020200127 | F53: 女 | G53: 62.50 | H53: 25.00 | K53: 80.67 | L53: 48.40 | M53: 73.40 | N53: 进入体检
A54: 52 | B54: 溧阳市教职工流动服务中心 | C54: 小学语文（中高年级） | D54: 4 | E54: 220020200124 | F54: 女 | G54: 56.00 | H54: 22.40 | K54: 83.67 | L54: 50.20 | M54: 72.60 | N54: 进入体检
A55: 53 | B55: 溧阳市教职工流动服务中心 | C55: 小学语文（中高年级） | D55: 4 | E55: 220020200126 | F55: 女 | G55: 59.50 | H55: 23.80 | K55: 80.67 | L55: 48.40 | M55: 72.20 | N55: 进入体检
A56: 54 | B56: 溧阳市教职工流动服务中心 | C56: 小学语文（中高年级） | D56: 4 | E56: 220020200119 | F56: 女 | G56: 56.50 | H56: 22.60 | K56: 80.67 | L56: 48.40 | M56: 71.00
A57: 55 | B57: 溧阳市教职工流动服务中心 | C57: 小学语文（中高年级） | D57: 4 | E57: 220020200108 | F57: 女 | G57: 63.50 | H57: 25.40 | K57: 76.00 | L57: 45.60 | M57: 71.00
A58: 56 | B58: 溧阳市教职工流动服务中心 | C58: 小学语文（中高年级） | D58: 4 | E58: 220020200115 | F58: 男 | G58: 54.50 | H58: 21.80 | K58: 81.33 | L58: 48.80 | M58: 70.60
A59: 57 | B59: 溧阳市教职工流动服务中心 | C59: 小学语文（中高年级） | D59: 4 | E59: 220020200107 | F59: 女 | G59: 59.50 | H59: 23.80 | K59: 77.33 | L59: 46.40 | M59: 70.20
A60: 58 | B60: 溧阳市教职工流动服务中心 | C60: 小学语文（中高年级） | D60: 4 | E60: 220020200117 | F60: 女 | G60: 55.00 | H60: 22.00 | K60: 79.00 | L60: 47.40 | M60: 69.40
A61: 59 | B61: 溧阳市教职工流动服务中心 | C61: 小学语文（中高年级） | D61: 4 | E61: 220020200130 | F61: 男 | G61: 54.00 | H61: 21.60 | K61: 68.33 | L61: 41.00 | M61: 62.60
A62: 60 | B62: 溧阳市教职工流动服务中心 | C62: 小学语文（中高年级） | D62: 4 | E62: 220020200131 | F62: 女 | G62: 58.00 | H62: 23.20 | K62: 0.00 | L62: 0.00 | M62: 23.20
A63: 61 | B63: 溧阳市教职工流动服务中心 | C63: 小学数学（低年级） | D63: 4 | E63: 220020200158 | F63: 女 | G63: 75.50 | H63: 30.20 | K63: 79.00 | L63: 47.40 | M63: 77.60 | N63: 进入体检
A64: 62 | B64: 溧阳市教职工流动服务中心 | C64: 小学数学（低年级） | D64: 4 | E64: 220020200133 | F64: 女 | G64: 63.00 | H64: 25.20 | K64: 85.00 | L64: 51.00 | M64: 76.20 | N64: 进入体检
A65: 63 | B65: 溧阳市教职工流动服务中心 | C65: 小学数学（低年级） | D65: 4 | E65: 220020200155 | F65: 女 | G65: 67.00 | H65: 26.80 | K65: 79.33 | L65: 47.60 | M65: 74.40 | N65: 进入体检
A66: 64 | B66: 溧阳市教职工流动服务中心 | C66: 小学数学（低年级） | D66: 4 | E66: 220020200134 | F66: 男 | G66: 63.00 | H66: 25.20 | K66: 81.33 | L66: 48.80 | M66: 74.00 | N66: 进入体检
A67: 65 | B67: 溧阳市教职工流动服务中心 | C67: 小学数学（低年级） | D67: 4 | E67: 220020200153 | F67: 女 | G67: 64.50 | H67: =ROUND(G67*0.4,2) -> 25.80 | K67: 78.67 | L67: 47.20 | M67: 73.00
A68: 66 | B68: 溧阳市教职工流动服务中心 | C68: 小学数学（低年级） | D68: 4 | E68: 220020200148 | F68: 女 | G68: 60.50 | H68: 24.20 | K68: 81.00 | L68: =ROUND(I68*0.3+J68*0.3+K68*0.6,2) -> 48.60 | M68: =ROUND((H68+L68),2) -> 72.80
A69: 67 | B69: 溧阳市教职工流动服务中心 | C69: 小学数学（低年级） | D69: 4 | E69: 220020200141 | F69: 女 | G69: 65.00 | H69: 26.00 | K69: 78.00 | L69: =ROUND(I69*0.3+J69*0.3+K69*0.6,2) -> 46.80 | M69: =ROUND((H69+L69),2) -> 72.80
A70: 68 | B70: 溧阳市教职工流动服务中心 | C70: 小学数学（低年级） | D70: 4 | E70: 220020200132 | F70: 女 | G70: 59.00 | H70: 23.60 | K70: 79.33 | L70: 47.60 | M70: 71.20
A71: 69 | B71: 溧阳市教职工流动服务中心 | C71: 小学数学（低年级） | D71: 4 | E71: 220020200156 | F71: 女 | G71: 59.50 | H71: 23.80 | K71: 78.67 | L71: 47.20 | M71: 71.00
A72: 70 | B72: 溧阳市教职工流动服务中心 | C72: 小学数学（低年级） | D72: 4 | E72: 220020200140 | F72: 女 | G72: 58.00 | H72: 23.20 | K72: 75.67 | L72: 45.40 | M72: 68.60
A73: 71 | B73: 溧阳市教职工流动服务中心 | C73: 小学数学（低年级） | D73: 4 | E73: 220020200135 | F73: 女 | G73: 58.50 | H73: 23.40 | K73: 0.00 | L73: 0.00 | M73: 23.40
A74: 72 | B74: 溧阳市教职工流动服务中心 | C74: 小学数学（中年级） | D74: 5 | E74: 220020200182 | F74: 女 | G74: 70.00 | H74: 28.00 | K74: 87.67 | L74: 52.60 | M74: 80.60 | N74: 进入体检
A75: 73 | B75: 溧阳市教职工流动服务中心 | C75: 小学数学（中年级） | D75: 5 | E75: 220020200176 | F75: 女 | G75: 73.00 | H75: 29.20 | K75: 84.00 | L75: 50.40 | M75: 79.60 | N75: 进入体检
A76: 74 | B76: 溧阳市教职工流动服务中心 | C76: 小学数学（中年级） | D76: 5 | E76: 220020200174 | F76: 女 | G76: 68.50 | H76: 27.40 | K76: 86.17 | L76: 51.70 | M76: 79.10 | N76: 进入体检
A77: 75 | B77: 溧阳市教职工流动服务中心 | C77: 小学数学（中年级） | D77: 5 | E77: 220020200192 | F77: 女 | G77: 68.00 | H77: 27.20 | K77: 86.33 | L77: 51.80 | M77: 79.00 | N77: 进入体检
A78: 76 | B78: 溧阳市教职工流动服务中心 | C78: 小学数学（中年级） | D78: 5 | E78: 220020200185 | F78: 女 | G78: 67.00 | H78: 26.80 | K78: 84.50 | L78: 50.70 | M78: 77.50 | N78: 进入体检
A79: 77 | B79: 溧阳市教职工流动服务中心 | C79: 小学数学（中年级） | D79: 5 | E79: 220020200180 | F79: 女 | G79: 67.50 | H79: 27.00 | K79: 83.00 | L79: 49.80 | M79: 76.80
A80: 78 | B80: 溧阳市教职工流动服务中心 | C80: 小学数学（中年级） | D80: 5 | E80: 220020200164 | F80: 女 | G80: 65.00 | H80: 26.00 | K80: 83.67 | L80: 50.20 | M80: 76.20
A81: 79 | B81: 溧阳市教职工流动服务中心 | C81: 小学数学（中年级） | D81: 5 | E81: 220020200198 | F81: 女 | G81: 60.50 | H81: 24.20 | K81: 84.33 | L81: 50.60 | M81: 74.80
A82: 80 | B82: 溧阳市教职工流动服务中心 | C82: 小学数学（中年级） | D82: 5 | E82: 220020200172 | F82: 女 | G82: 61.00 | H82: 24.40 | K82: 84.00 | L82: 50.40 | M82: 74.80
A83: 81 | B83: 溧阳市教职工流动服务中心 | C83: 小学数学（中年级） | D83: 5 | E83: 220020200177 | F83: 女 | G83: 65.50 | H83: 26.20 | K83: 80.67 | L83: 48.40 | M83: 74.60
A84: 82 | B84: 溧阳市教职工流动服务中心 | C84: 小学数学（中年级） | D84: 5 | E84: 220020200199 | F84: 女 | G84: 59.50 | H84: 23.80 | K84: 84.33 | L84: 50.60 | M84: 74.40
A85: 83 | B85: 溧阳市教职工流动服务中心 | C85: 小学数学（中年级） | D85: 5 | E85: 220020200163 | F85: 女 | G85: 57.50 | H85: 23.00 | K85: 84.00 | L85: 50.40 | M85: 73.40
A86: 84 | B86: 溧阳市教职工流动服务中心 | C86: 小学数学（中年级） | D86: 5 | E86: 220020200179 | F86: 女 | G86: 58.50 | H86: 23.40 | K86: 83.00 | L86: 49.80 | M86: 73.20
A87: 85 | B87: 溧阳市教职工流动服务中心 | C87: 小学数学（中年级） | D87: 5 | E87: 220020200168 | F87: 女 | G87: 56.50 | H87: 22.60 | K87: 80.33 | L87: 48.20 | M87: 70.80
A88: 86 | B88: 溧阳市教职工流动服务中心 | C88: 小学数学（高年级） | D88: 5 | E88: 220020200232 | F88: 女 | G88: 78.00 | H88: 31.20 | K88: 80.33 | L88: 48.20 | M88: 79.40 | N88: 进入体检
A89: 87 | B89: 溧阳市教职工流动服务中心 | C89: 小学数学（高年级） | D89: 5 | E89: 220020200205 | F89: 女 | G89: 63.50 | H89: 25.40 | K89: 85.00 | L89: 51.00 | M89: 76.40 | N89: 进入体检
A90: 88 | B90: 溧阳市教职工流动服务中心 | C90: 小学数学（高年级） | D90: 5 | E90: 220020200211 | F90: 女 | G90: 64.00 | H90: 25.60 | K90: 82.33 | L90: 49.40 | M90: 75.00 | N90: 进入体检
A91: 89 | B91: 溧阳市教职工流动服务中心 | C91: 小学数学（高年级） | D91: 5 | E91: 220020200241 | F91: 女 | G91: 61.50 | H91: 24.60 | K91: 82.67 | L91: 49.60 | M91: 74.20 | N91: 进入体检
A92: 90 | B92: 溧阳市教职工流动服务中心 | C92: 小学数学（高年级） | D92: 5 | E92: 220020200236 | F92: 男 | G92: 65.50 | H92: 26.20 | K92: 80.00 | L92: 48.00 | M92: 74.20 | N92: 进入体检
A93: 91 | B93: 溧阳市教职工流动服务中心 | C93: 小学数学（高年级） | D93: 5 | E93: 220020200229 | F93: 女 | G93: 66.00 | H93: 26.40 | K93: 79.67 | L93: 47.80 | M93: 74.20
A94: 92 | B94: 溧阳市教职工流动服务中心 | C94: 小学数学（高年级） | D94: 5 | E94: 220020200207 | F94: 女 | G94: 65.00 | H94: 26.00 | K94: 80.00 | L94: 48.00 | M94: 74.00
A95: 93 | B95: 溧阳市教职工流动服务中心 | C95: 小学数学（高年级） | D95: 5 | E95: 220020200210 | F95: 女 | G95: 67.50 | H95: 27.00 | K95: 78.00 | L95: 46.80 | M95: 73.80
A96: 94 | B96: 溧阳市教职工流动服务中心 | C96: 小学数学（高年级） | D96: 5 | E96: 220020200224 | F96: 女 | G96: 68.00 | H96: 27.20 | K96: 77.67 | L96: 46.60 | M96: 73.80
A97: 95 | B97: 溧阳市教职工流动服务中心 | C97: 小学数学（高年级） | D97: 5 | E97: 220020200235 | F97: 女 | G97: 69.00 | H97: 27.60 | K97: 76.33 | L97: 45.80 | M97: 73.40
A98: 96 | B98: 溧阳市教职工流动服务中心 | C98: 小学数学（高年级） | D98: 5 | E98: 220020200221 | F98: 女 | G98: 65.00 | H98: 26.00 | K98: 78.67 | L98: 47.20 | M98: 73.20
A99: 97 | B99: 溧阳市教职工流动服务中心 | C99: 小学数学（高年级） | D99: 5 | E99: 220020200212 | F99: 女 | G99: 66.00 | H99: 26.40 | K99: 78.00 | L99: 46.80 | M99: 73.20
A100: 98 | B100: 溧阳市教职工流动服务中心 | C100: 小学数学（高年级） | D100: 5 | E100: 220020200237 | F100: 女 | G100: 63.50 | H100: 25.40 | K100: 78.33 | L100: 47.00 | M100: 72.40
A101: 99 | B101: 溧阳市教职工流动服务中心 | C101: 小学数学（高年级） | D101: 5 | E101: 220020200203 | F101: 女 | G101: 63.50 | H101: 25.40 | K101: 77.00 | L101: 46.20 | M101: 71.60
A102: 100 | B102: 溧阳市教职工流动服务中心 | C102: 小学数学（高年级） | D102: 5 | E102: 220020200214 | F102: 女 | G102: 63.50 | H102: 25.40 | K102: 76.67 | L102: 46.00 | M102: 71.40
A103: 101 | B103: 溧阳市教职工流动服务中心 | C103: 小学数学（高年级） | D103: 5 | E103: 220020200220 | F103: 女 | G103: 61.50 | H103: 24.60 | K103: 76.67 | L103: 46.00 | M103: 70.60
A104: 102 | B104: 溧阳市教职工流动服务中心 | C104: 小学英语 | D104: 5 | E104: 220020200309 | F104: 女 | G104: 71.00 | H104: 28.40 | K104: 93.00 | L104: 55.80 | M104: 84.20 | N104: 进入体检
A105: 103 | B105: 溧阳市教职工流动服务中心 | C105: 小学英语 | D105: 5 | E105: 220020200277 | F105: 女 | G105: 80.00 | H105: 32.00 | K105: 82.67 | L105: 49.60 | M105: 81.60 | N105: 进入体检
A106: 104 | B106: 溧阳市教职工流动服务中心 | C106: 小学英语 | D106: 5 | E106: 220020200298 | F106: 女 | G106: 75.50 | H106: 30.20 | K106: 84.33 | L106: 50.60 | M106: 80.80 | N106: 进入体检
A107: 105 | B107: 溧阳市教职工流动服务中心 | C107: 小学英语 | D107: 5 | E107: 220020200297 | F107: 女 | G107: 71.50 | H107: 28.60 | K107: 85.00 | L107: 51.00 | M107: 79.60 | N107: 进入体检
A108: 106 | B108: 溧阳市教职工流动服务中心 | C108: 小学英语 | D108: 5 | E108: 220020200256 | F108: 女 | G108: 69.50 | H108: 27.80 | K108: 86.00 | L108: 51.60 | M108: 79.40 | N108: 进入体检
A109: 107 | B109: 溧阳市教职工流动服务中心 | C109: 小学英语 | D109: 5 | E109: 220020200305 | F109: 女 | G109: 72.00 | H109: 28.80 | K109: 84.00 | L109: 50.40 | M109: 79.20
A110: 108 | B110: 溧阳市教职工流动服务中心 | C110: 小学英语 | D110: 5 | E110: 220020200278 | F110: 女 | G110: 71.50 | H110: 28.60 | K110: 83.00 | L110: 49.80 | M110: 78.40
A111: 109 | B111: 溧阳市教职工流动服务中心 | C111: 小学英语 | D111: 5 | E111: 220020200308 | F111: 女 | G111: 69.50 | H111: 27.80 | K111: 83.00 | L111: 49.80 | M111: 77.60
A112: 110 | B112: 溧阳市教职工流动服务中心 | C112: 小学英语 | D112: 5 | E112: 220020200254 | F112: 女 | G112: 70.00 | H112: 28.00 | K112: 81.67 | L112: 49.00 | M112: 77.00
A113: 111 | B113: 溧阳市教职工流动服务中心 | C113: 小学英语 | D113: 5 | E113: 220020200271 | F113: 女 | G113: 72.50 | H113: 29.00 | K113: 78.67 | L113: 47.20 | M113: 76.20
A114: 112 | B114: 溧阳市教职工流动服务中心 | C114: 小学英语 | D114: 5 | E114: 220020200295 | F114: 女 | G114: 74.00 | H114: 29.60 | K114: 77.67 | L114: 46.60 | M114: 76.20
A115: 113 | B115: 溧阳市教职工流动服务中心 | C115: 小学英语 | D115: 5 | E115: 220020200264 | F115: 女 | G115: 69.50 | H115: 27.80 | K115: 78.00 | L115: 46.80 | M115: 74.60
A116: 114 | B116: 溧阳市教职工流动服务中心 | C116: 小学英语 | D116: 5 | E116: 220020200269 | F116: 女 | G116: 77.50 | H116: 31.00 | K116: 0.00 | L116: 0.00 | M116: 31.00
A117: 115 | B117: 溧阳市教职工流动服务中心 | C117: 小学英语 | D117: 5 | E117: 220020200281 | F117: 女 | G117: 77.50 | H117: 31.00 | K117: 0.00 | L117: 0.00 | M117: 31.00
A118: 116 | B118: 溧阳市教职工流动服务中心 | C118: 小学音乐 | D118: 3 | E118: 220020200370 | F118: 女 | G118: 74.00 | H118: 29.60 | I118: 82.67 | J118: 85.00 | L118: 50.30 | M118: 79.90 | N118: 进入体检
A119: 117 | B119: 溧阳市教职工流动服务中心 | C119: 小学音乐 | D119: 3 | E119: 220020200336 | F119: 女 | G119: 80.00 | H119: 32.00 | I119: 77.67 | J119: 77.67 | L119: 46.60 | M119: 78.60 | N119: 进入体检
A120: 118 | B120: 溧阳市教职工流动服务中心 | C120: 小学音乐 | D120: 3 | E120: 220020200369 | F120: 女 | G120: 70.00 | H120: 28.00 | I120: 80.33 | J120: 81.67 | L120: 48.60 | M120: 76.60 | N120: 进入体检
A121: 119 | B121: 溧阳市教职工流动服务中心 | C121: 小学音乐 | D121: 3 | E121: 220020200350 | F121: 女 | G121: 73.00 | H121: 29.20 | I121: 78.67 | J121: 75.33 | L121: 46.20 | M121: 75.40
A122: 120 | B122: 溧阳市教职工流动服务中心 | C122: 小学音乐 | D122: 3 | E122: 220020200381 | F122: 女 | G122: 68.50 | H122: 27.40 | I122: 79.67 | J122: 75.33 | L122: 46.50 | M122: 73.90
A123: 121 | B123: 溧阳市教职工流动服务中心 | C123: 小学音乐 | D123: 3 | E123: 220020200356 | F123: 女 | G123: 65.50 | H123: 26.20 | I123: 81.00 | J123: 74.00 | L123: 46.50 | M123: 72.70
A124: 122 | B124: 溧阳市教职工流动服务中心 | C124: 小学音乐 | D124: 3 | E124: 220020200342 | F124: 女 | G124: 63.50 | H124: 25.40 | I124: 73.00 | J124: 81.33 | L124: 46.30 | M124: 71.70
A125: 123 | B125: 溧阳市教职工流动服务中心 | C125: 小学音乐 | D125: 3 | E125: 220020200375 | F125: 女 | G125: 66.00 | H125: 26.40 | I125: 71.67 | J125: 76.67 | L125: 44.50 | M125: 70.90
A126: 124 | B126: 溧阳市教职工流动服务中心 | C126: 小学音乐 | D126: 3 | E126: 220020200372 | F126: 男 | G126: 67.00 | H126: 26.80 | I126: 0.00 | J126: 0.00 | L126: 0.00 | M126: 26.80
A127: 125 | B127: 溧阳市教职工流动服务中心 | C127: 小学体育 | D127: 4 | E127: 220020200446 | F127: 男 | G127: 66.50 | H127: 26.60 | I127: 71.22 | J127: 86.33 | L127: 47.27 | M127: 73.87 | N127: 进入体检
A128: 126 | B128: 溧阳市教职工流动服务中心 | C128: 小学体育 | D128: 4 | E128: 220020200432 | F128: 女 | G128: 66.00 | H128: 26.40 | I128: 64.58 | J128: 89.00 | L128: 46.07 | M128: 72.47 | N128: 进入体检
A129: 127 | B129: 溧阳市教职工流动服务中心 | C129: 小学体育 | D129: 4 | E129: 220020200424 | F129: 女 | G129: 65.50 | H129: 26.20 | I129: 67.44 | J129: 86.67 | L129: 46.23 | M129: 72.43 | N129: 进入体检
A130: 128 | B130: 溧阳市教职工流动服务中心 | C130: 小学体育 | D130: 4 | E130: 220020200415 | F130: 男 | G130: 64.50 | H130: 25.80 | I130: 65.48 | J130: 85.00 | L130: 45.14 | M130: 70.94 | N130: 进入体检
A131: 129 | B131: 溧阳市教职工流动服务中心 | C131: 小学体育 | D131: 4 | E131: 220020200395 | F131: 男 | G131: 64.00 | H131: =ROUND(G131*0.4,2) -> 25.60 | I131: 63.38 | J131: 83.67 | L131: 44.12 | M131: 69.72
A132: 130 | B132: 溧阳市教职工流动服务中心 | C132: 小学体育 | D132: 4 | E132: 220020200396 | F132: 男 | G132: 63.50 | H132: 25.40 | I132: 63.38 | J132: 80.00 | L132: 43.01 | M132: 68.41
A133: 131 | B133: 溧阳市教职工流动服务中心 | C133: 小学体育 | D133: 4 | E133: 220020200436 | F133: 女 | G133: 63.00 | H133: 25.20 | I133: 55.40 | J133: 0.00 | L133: =ROUND(I133*0.3+J133*0.3+K133*0.6,2) -> 16.62 | M133: =ROUND((H133+L133),2) -> 41.82
A134: 132 | B134: 溧阳市教职工流动服务中心 | C134: 小学体育 | D134: 4 | E134: 220020200402 | F134: 男 | G134: 62.00 | H134: 24.80 | I134: 56.10 | J134: 0.00 | L134: 16.83 | M134: 41.63
A135: 133 | B135: 溧阳市教职工流动服务中心 | C135: 小学体育 | D135: 4 | E135: 220020200441 | F135: 男 | G135: 63.00 | H135: 25.20 | I135: 52.06 | J135: 0.00 | L135: 15.62 | M135: 40.82
A136: 134 | B136: 溧阳市教职工流动服务中心 | C136: 小学体育 | D136: 4 | E136: 220020200400 | F136: 男 | G136: 62.50 | H136: 25.00 | I136: 0.00 | J136: 0.00 | L136: 0.00 | M136: 25.00
A137: 135 | B137: 溧阳市教职工流动服务中心 | C137: 小学体育 | D137: 4 | E137: 220020200401 | F137: 男 | G137: 62.50 | H137: 25.00 | I137: 0.00 | J137: 0.00 | L137: 0.00 | M137: 25.00
A138: 136 | B138: 溧阳市教职工流动服务中心 | C138: 小学美术 | D138: 3 | E138: 220020200513 | F138: 女 | G138: 66.00 | H138: 26.40 | I138: 92.33 | J138: 87.33 | L138: 53.90 | M138: 80.30 | N138: 进入体检
A139: 137 | B139: 溧阳市教职工流动服务中心 | C139: 小学美术 | D139: 3 | E139: 220020200581 | F139: 女 | G139: 70.00 | H139: 28.00 | I139: 88.33 | J139: 84.10 | L139: 51.73 | M139: 79.73 | N139: 进入体检
A140: 138 | B140: 溧阳市教职工流动服务中心 | C140: 小学美术 | D140: 3 | E140: 220020200507 | F140: 女 | G140: 71.00 | H140: 28.40 | I140: 80.33 | J140: 88.40 | L140: 50.62 | M140: 79.02 | N140: 进入体检
A141: 139 | B141: 溧阳市教职工流动服务中心 | C141: 小学美术 | D141: 3 | E141: 220020200526 | F141: 女 | G141: 66.00 | H141: 26.40 | I141: 84.17 | J141: 84.50 | L141: 50.60 | M141: 77.00
A142: 140 | B142: 溧阳市教职工流动服务中心 | C142: 小学美术 | D142: 3 | E142: 220020200634 | F142: 女 | G142: 65.50 | H142: 26.20 | I142: 82.33 | J142: 84.40 | L142: 50.02 | M142: 76.22
A143: 141 | B143: 溧阳市教职工流动服务中心 | C143: 小学美术 | D143: 3 | E143: 220020200691 | F143: 女 | G143: 66.50 | H143: 26.60 | I143: 83.67 | J143: 80.83 | L143: 49.35 | M143: 75.95
A144: 142 | B144: 溧阳市教职工流动服务中心 | C144: 小学美术 | D144: 3 | E144: 220020200652 | F144: 女 | G144: 65.50 | H144: 26.20 | I144: 72.67 | J144: 81.33 | L144: 46.20 | M144: 72.40
A145: 143 | B145: 溧阳市教职工流动服务中心 | C145: 小学美术 | D145: 3 | E145: 220020200484 | F145: 女 | G145: 66.00 | H145: 26.40 | I145: 0.00 | J145: 0.00 | L145: 0.00 | M145: 26.40
A146: 144 | B146: 溧阳市教职工流动服务中心 | C146: 小学信息技术 | D146: 1 | E146: 220020200711 | F146: 女 | G146: 54.00 | H146: 21.60 | K146: 84.33 | L146: 50.60 | M146: 72.20 | N146: 进入体检
A147: 145 | B147: 溧阳市教职工流动服务中心 | C147: 小学信息技术 | D147: 1 | E147: 220020200713 | F147: 女 | G147: 50.50 | H147: 20.20 | K147: 82.00 | L147: 49.20 | M147: 69.40
A148: 146 | B148: 溧阳市教职工流动服务中心 | C148: 小学科学 | D148: 2 | E148: 220020200717 | F148: 女 | G148: 56.00 | H148: 22.40 | K148: 85.67 | L148: 51.40 | M148: 73.80 | N148: 进入体检
A149: 147 | B149: 溧阳市教职工流动服务中心 | C149: 初中语文 | D149: 2 | E149: 220020200740 | F149: 女 | G149: 71.00 | H149: 28.40 | K149: 86.33 | L149: 51.80 | M149: 80.20 | N149: 进入体检
A150: 148 | B150: 溧阳市教职工流动服务中心 | C150: 初中语文 | D150: 2 | E150: 220020200748 | F150: 女 | G150: 64.00 | H150: 25.60 | K150: 84.67 | L150: 50.80 | M150: 76.40 | N150: 进入体检
A151: 149 | B151: 溧阳市教职工流动服务中心 | C151: 初中语文 | D151: 2 | E151: 220020200744 | F151: 女 | G151: 57.50 | H151: 23.00 | K151: 85.33 | L151: 51.20 | M151: 74.20
A152: 150 | B152: 溧阳市教职工流动服务中心 | C152: 初中语文 | D152: 2 | E152: 220020200750 | F152: 女 | G152: 60.50 | H152: 24.20 | K152: 82.67 | L152: 49.60 | M152: 73.80
A153: 151 | B153: 溧阳市教职工流动服务中心 | C153: 初中语文 | D153: 2 | E153: 220020200731 | F153: 女 | G153: 62.00 | H153: 24.80 | K153: 81.00 | L153: 48.60 | M153: 73.40
A154: 152 | B154: 溧阳市教职工流动服务中心 | C154: 初中语文 | D154: 2 | E154: 220020200736 | F154: 女 | G154: 62.50 | H154: 25.00 | K154: 79.67 | L154: 47.80 | M154: 72.80
A155: 153 | B155: 溧阳市教职工流动服务中心 | C155: 初中语文 | D155: 2 | E155: 220020200741 | F155: 女 | G155: 56.00 | H155: 22.40 | K155: 83.33 | L155: 50.00 | M155: 72.40
A156: 154 | B156: 溧阳市教职工流动服务中心 | C156: 初中语文 | D156: 2 | E156: 220020200745 | F156: 男 | G156: 56.50 | H156: 22.60 | K156: 82.67 | L156: 49.60 | M156: 72.20
A157: 155 | B157: 溧阳市教职工流动服务中心 | C157: 初中语文 | D157: 2 | E157: 220020200729 | F157: 女 | G157: 55.50 | H157: 22.20 | K157: 78.33 | L157: 47.00 | M157: 69.20
A158: 156 | B158: 溧阳市教职工流动服务中心 | C158: 初中语文 | D158: 2 | E158: 220020200732 | F158: 女 | G158: 59.00 | H158: 23.60 | K158: 0.00 | L158: 0.00 | M158: 23.60
A159: 157 | B159: 溧阳市教职工流动服务中心 | C159: 初中数学 | D159: 2 | E159: 220020200759 | F159: 男 | G159: 72.00 | H159: 28.80 | K159: 83.34 | L159: 50.00 | M159: 78.80 | N159: 进入体检
A160: 158 | B160: 溧阳市教职工流动服务中心 | C160: 初中数学 | D160: 2 | E160: 220020200767 | F160: 女 | G160: 70.00 | H160: 28.00 | K160: 82.67 | L160: 49.60 | M160: 77.60 | N160: 进入体检
A161: 159 | B161: 溧阳市教职工流动服务中心 | C161: 初中数学 | D161: 2 | E161: 220020200757 | F161: 女 | G161: 65.50 | H161: 26.20 | K161: 81.17 | L161: 48.70 | M161: 74.90
A162: 160 | B162: 溧阳市教职工流动服务中心 | C162: 初中数学 | D162: 2 | E162: 220020200755 | F162: 女 | G162: 67.50 | H162: 27.00 | K162: 78.84 | L162: 47.30 | M162: 74.30
A163: 161 | B163: 溧阳市教职工流动服务中心 | C163: 初中数学 | D163: 2 | E163: 220020200769 | F163: 女 | G163: 58.00 | H163: 23.20 | K163: 79.84 | L163: 47.90 | M163: 71.10
A164: 162 | B164: 溧阳市教职工流动服务中心 | C164: 初中数学 | D164: 2 | E164: 220020200764 | F164: 女 | G164: 59.50 | H164: 23.80 | K164: 78.84 | L164: 47.30 | M164: 71.10
A165: 163 | B165: 溧阳市教职工流动服务中心 | C165: 初中数学 | D165: 2 | E165: 220020200770 | F165: 男 | G165: 60.00 | H165: 24.00 | K165: 78.34 | L165: 47.00 | M165: 71.00
A166: 164 | B166: 溧阳市教职工流动服务中心 | C166: 初中数学 | D166: 2 | E166: 220020200765 | F166: 女 | G166: 63.50 | H166: 25.40 | K166: 0.00 | L166: 0.00 | M166: 25.40
A167: 165 | B167: 溧阳市教职工流动服务中心 | C167: 初中数学 | D167: 2 | E167: 220020200752 | F167: 男 | G167: 55.50 | H167: 22.20 | K167: 0.00 | L167: 0.00 | M167: 22.20
A168: 166 | B168: 溧阳市教职工流动服务中心 | C168: 初中物理 | D168: 1 | E168: 220020200772 | F168: 男 | G168: 71.00 | H168: 28.40 | K168: 82.33 | L168: 49.40 | M168: 77.80 | N168: 进入体检
A169: 167 | B169: 溧阳市教职工流动服务中心 | C169: 初中物理 | D169: 1 | E169: 220020200774 | F169: 男 | G169: 72.50 | H169: 29.00 | K169: 81.33 | L169: 48.80 | M169: 77.80
A170: 168 | B170: 溧阳市教职工流动服务中心 | C170: 初中化学 | D170: 1 | E170: 220020200783 | F170: 女 | G170: 62.00 | H170: 24.80 | K170: 85.67 | L170: 51.40 | M170: 76.20 | N170: 进入体检
A171: 169 | B171: 溧阳市教职工流动服务中心 | C171: 初中化学 | D171: 1 | E171: 220020200775 | F171: 女 | G171: 62.00 | H171: 24.80 | K171: 85.00 | L171: 51.00 | M171: 75.80
A172: 170 | B172: 溧阳市教职工流动服务中心 | C172: 初中化学 | D172: 1 | E172: 220020200778 | F172: 女 | G172: 54.50 | H172: 21.80 | K172: 79.33 | L172: 47.60 | M172: 69.40
A173: 171 | B173: 溧阳市教职工流动服务中心 | C173: 初中历史 | D173: 3 | E173: 220020200796 | F173: 女 | G173: 83.00 | H173: 33.20 | K173: 78.33 | L173: 47.00 | M173: 80.20 | N173: 进入体检
A174: 172 | B174: 溧阳市教职工流动服务中心 | C174: 初中历史 | D174: 3 | E174: 220020200787 | F174: 女 | G174: 82.00 | H174: 32.80 | K174: 75.67 | L174: 45.40 | M174: 78.20 | N174: 进入体检
A175: 173 | B175: 溧阳市教职工流动服务中心 | C175: 初中历史 | D175: 3 | E175: 220020200807 | F175: 女 | G175: 83.00 | H175: 33.20 | K175: 74.67 | L175: 44.80 | M175: 78.00 | N175: 进入体检
A176: 174 | B176: 溧阳市教职工流动服务中心 | C176: 初中历史 | D176: 3 | E176: 220020200811 | F176: 女 | G176: 78.50 | H176: 31.40 | K176: 76.00 | L176: 45.60 | M176: 77.00
A177: 175 | B177: 溧阳市教职工流动服务中心 | C177: 初中历史 | D177: 3 | E177: 220020200813 | F177: 女 | G177: 74.50 | H177: 29.80 | K177: 77.33 | L177: 46.40 | M177: 76.20
A178: 176 | B178: 溧阳市教职工流动服务中心 | C178: 初中历史 | D178: 3 | E178: 220020200797 | F178: 女 | G178: 74.00 | H178: 29.60 | K178: 76.67 | L178: 46.00 | M178: 75.60
A179: 177 | B179: 溧阳市教职工流动服务中心 | C179: 初中历史 | D179: 3 | E179: 220020200792 | F179: 女 | G179: 75.50 | H179: 30.20 | K179: 75.33 | L179: 45.20 | M179: 75.40
A180: 178 | B180: 溧阳市教职工流动服务中心 | C180: 初中历史 | D180: 3 | E180: 220020200794 | F180: 女 | G180: 75.00 | H180: 30.00 | K180: 73.33 | L180: 44.00 | M180: 74.00
A181: 179 | B181: 溧阳市教职工流动服务中心 | C181: 初中历史 | D181: 3 | E181: 220020200808 | F181: 女 | G181: 72.00 | H181: 28.80 | K181: 74.33 | L181: 44.60 | M181: 73.40
A182: 180 | B182: 溧阳市教职工流动服务中心 | C182: 初中英语 | D182: 2 | E182: 220020200819 | F182: 女 | G182: 75.00 | H182: 30.00 | K182: 82.33 | L182: 49.40 | M182: 79.40 | N182: 进入体检
A183: 181 | B183: 溧阳市教职工流动服务中心 | C183: 初中英语 | D183: 2 | E183: 220020200815 | F183: 女 | G183: 74.00 | H183: 29.60 | K183: 81.67 | L183: 49.00 | M183: 78.60 | N183: 进入体检
A184: 182 | B184: 溧阳市教职工流动服务中心 | C184: 初中英语 | D184: 2 | E184: 220020200823 | F184: 女 | G184: 66.00 | H184: 26.40 | K184: 85.00 | L184: 51.00 | M184: 77.40
A185: 183 | B185: 溧阳市教职工流动服务中心 | C185: 初中英语 | D185: 2 | E185: 220020200839 | F185: 女 | G185: 73.50 | H185: 29.40 | K185: 79.33 | L185: 47.60 | M185: 77.00
A186: 184 | B186: 溧阳市教职工流动服务中心 | C186: 初中英语 | D186: 2 | E186: 220020200825 | F186: 女 | G186: 79.00 | H186: 31.60 | K186: 75.67 | L186: 45.40 | M186: 77.00
A187: 185 | B187: 溧阳市教职工流动服务中心 | C187: 初中英语 | D187: 2 | E187: 220020200822 | F187: 女 | G187: 76.50 | H187: 30.60 | K187: 76.00 | L187: 45.60 | M187: 76.20
A188: 186 | B188: 溧阳市教职工流动服务中心 | C188: 初中英语 | D188: 2 | E188: 220020200818 | F188: 女 | G188: 73.00 | H188: 29.20 | K188: 77.67 | L188: 46.60 | M188: 75.80
A189: 187 | B189: 溧阳市教职工流动服务中心 | C189: 初中英语 | D189: 2 | E189: 220020200840 | F189: 女 | G189: 74.50 | H189: 29.80 | K189: 76.00 | L189: 45.60 | M189: 75.40
A190: 188 | B190: 溧阳市教职工流动服务中心 | C190: 初中英语 | D190: 2 | E190: 220020200821 | F190: 女 | G190: 71.00 | H190: 28.40 | K190: 77.33 | L190: 46.40 | M190: 74.80
A191: 189 | B191: 溧阳市教职工流动服务中心 | C191: 初中英语 | D191: 2 | E191: 220020200833 | F191: 女 | G191: 66.00 | H191: 26.40 | K191: 79.67 | L191: 47.80 | M191: 74.20
A192: 190 | B192: 溧阳市教职工流动服务中心 | C192: 初中体育 | D192: 1 | E192: 220020200849 | F192: 女 | G192: 67.50 | H192: 27.00 | I192: 62.28 | J192: 86.33 | L192: 44.58 | M192: 71.58 | N192: 进入体检
A193: 191 | B193: 溧阳市教职工流动服务中心 | C193: 初中体育 | D193: 1 | E193: 220020200846 | F193: 男 | G193: 60.50 | H193: 24.20 | I193: 68.48 | J193: 85.00 | L193: 46.04 | M193: 70.24
A194: 192 | B194: 溧阳市教职工流动服务中心 | C194: 初中体育 | D194: 1 | E194: 220020200844 | F194: 男 | G194: 62.50 | H194: 25.00 | I194: 47.88 | J194: 0.00 | L194: 14.36 | M194: 39.36
A195: 193 | B195: 溧阳市教职工流动服务中心 | C195: 初中体育 | D195: 1 | E195: 220020200848 | F195: 女 | G195: 66.50 | H195: =ROUND(G195*0.4,2) -> 26.60 | I195: 42.40 | J195: 0.00 | L195: 12.72 | M195: 39.32
A196: 194 | B196: 溧阳市教职工流动服务中心 | C196: 初中体育 | D196: 1 | E196: 220020200847 | F196: 男 | G196: 67.00 | H196: 26.80 | I196: 23.68 | J196: 0.00 | L196: 7.10 | M196: 33.90
A197: 195 | B197: 溧阳市教职工流动服务中心 | C197: 初中道德与法治 | D197: 2 | E197: 220020200863 | F197: 女 | G197: 83.00 | H197: 33.20 | K197: 82.67 | L197: =ROUND(I197*0.3+J197*0.3+K197*0.6,2) -> 49.60 | M197: =ROUND((H197+L197),2) -> 82.80 | N197: 进入体检
A198: 196 | B198: 溧阳市教职工流动服务中心 | C198: 初中道德与法治 | D198: 2 | E198: 220020200857 | F198: 女 | G198: 69.00 | H198: 27.60 | K198: 87.33 | L198: 52.40 | M198: 80.00 | N198: 进入体检
A199: 197 | B199: 溧阳市教职工流动服务中心 | C199: 初中道德与法治 | D199: 2 | E199: 220020200860 | F199: 女 | G199: 73.00 | H199: 29.20 | K199: 84.00 | L199: 50.40 | M199: 79.60
A200: 198 | B200: 溧阳市教职工流动服务中心 | C200: 初中道德与法治 | D200: 2 | E200: 220020200867 | F200: 女 | G200: 75.00 | H200: 30.00 | K200: 82.33 | L200: 49.40 | M200: 79.40
... 5 more rows
